[Event "Late-Titled-Tuesday-Blitz-April-02-2024"]
[Site "Chess.com"]
[Date "2024.04.02"]
[Round "3"]
[White "AsaHoffmann"]
[Black "Sanyura"]
[Result "0-1"]
[WhiteElo "2411"]
[BlackElo "2615"]
[TimeControl "180+1"]
[EndTime "14:27:19 PDT"]
[Termination "Sanyura won by checkmate"]

1. d4 {[%clk 0:02:58.6]} 1... Nf6 {[%clk 0:02:59.4]} 2. Bg5 {[%clk 0:02:54.3]}
2... Ne4 {[%clk 0:02:58.4]} 3. Bf4 {[%clk 0:02:54.2]} 3... c5 {[%clk 0:02:58.8]}
4. f3 {[%clk 0:02:54.1]} 4... Qa5+ {[%clk 0:02:58.3]} 5. c3 {[%clk 0:02:53.8]}
5... Nf6 {[%clk 0:02:58.9]} 6. d5 {[%clk 0:02:53.5]} 6... e6 {[%clk 0:02:54.1]}
7. e4 {[%clk 0:02:53]} 7... exd5 {[%clk 0:02:54.1]} 8. exd5 {[%clk 0:02:52.7]}
8... d6 {[%clk 0:02:54.6]} 9. Na3 {[%clk 0:02:52.1]} 9... Be7 {[%clk 0:02:54.1]}
10. Qd2 {[%clk 0:02:48.6]} 10... O-O {[%clk 0:02:52.6]} 11. c4 {[%clk
0:02:48.1]} 11... Qd8 {[%clk 0:02:42.5]} 12. Bd3 {[%clk 0:02:45.1]} 12... Re8
{[%clk 0:02:36.8]} 13. Ne2 {[%clk 0:02:44.5]} 13... Nh5 {[%clk 0:02:36.7]} 14.
Be3 {[%clk 0:02:42.1]} 14... Nd7 {[%clk 0:02:37.2]} 15. O-O {[%clk 0:02:34.6]}
15... Ne5 {[%clk 0:02:36.9]} 16. Nc2 {[%clk 0:02:31]} 16... Nxd3 {[%clk
0:02:34.1]} 17. Qxd3 {[%clk 0:02:30.4]} 17... g6 {[%clk 0:02:34.7]} 18. g4
{[%clk 0:02:29]} 18... Nf6 {[%clk 0:01:53.8]} 19. Ng3 {[%clk 0:02:28]} 19... Nd7
{[%clk 0:01:52.2]} 20. Rae1 {[%clk 0:02:20.9]} 20... Ne5 {[%clk 0:01:52.2]} 21.
Qe2 {[%clk 0:02:12.5]} 21... b5 {[%clk 0:01:40.5]} 22. cxb5 {[%clk 0:02:06.1]}
22... Bb7 {[%clk 0:01:40.7]} 23. f4 {[%clk 0:02:03.6]} 23... Nd7 {[%clk
0:01:39.9]} 24. Rd1 {[%clk 0:01:51.2]} 24... Nb6 {[%clk 0:01:40.1]} 25. Qf3
{[%clk 0:01:48.5]} 25... Bf6 {[%clk 0:01:03.1]} 26. b3 {[%clk 0:01:45.5]} 26...
Qd7 {[%clk 0:00:59.6]} 27. f5 {[%clk 0:01:39.3]} 27... Rxe3 {[%clk 0:00:57]} 28.
Qxe3 {[%clk 0:01:36.4]} 28... Nxd5 {[%clk 0:00:56.8]} 29. Qd2 {[%clk 0:01:20.1]}
29... Be5 {[%clk 0:00:45]} 30. Ne3 {[%clk 0:01:14.5]} 30... Bd4 {[%clk
0:00:42.7]} 31. Rfe1 {[%clk 0:01:09.8]} 31... Nxe3 {[%clk 0:00:39.6]} 32. Rxe3
{[%clk 0:01:09]} 32... Re8 {[%clk 0:00:39.8]} 33. Nf1 {[%clk 0:01:06.5]} 33...
Qxb5 {[%clk 0:00:39.3]} 34. Qd3 {[%clk 0:01:03]} 34... Qc6 {[%clk 0:00:34.7]}
35. Rd2 {[%clk 0:00:56.4]} 35... Ba6 {[%clk 0:00:14.7]} 36. Qc2 {[%clk
0:00:20.9]} 36... Bxf1 {[%clk 0:00:14.3]} 37. Kxf1 {[%clk 0:00:18.8]} 37... Rxe3
{[%clk 0:00:12.8]} 38. Rf2 {[%clk 0:00:13.2]} 38... Qh1# {[%clk 0:00:12.6]} 0-1

[Event "Late-Titled-Tuesday-Blitz-April-02-2024"]
[Site "Chess.com"]
[Date "2024.04.02"]
[Round "3"]
[White "Valiyev_Shahin"]
[Black "Crazy_girl99"]
[Result "0-1"]
[WhiteElo "2403"]
[BlackElo "2622"]
[TimeControl "180+1"]
[EndTime "14:27:21 PDT"]
[Termination "Crazy_girl99 won on time"]

1. e4 {[%clk 0:03:00.9]} 1... e5 {[%clk 0:02:55.7]} 2. Nf3 {[%clk 0:03:01.1]}
2... Nc6 {[%clk 0:02:53.7]} 3. Bb5 {[%clk 0:03:01]} 3... a6 {[%clk 0:02:53.2]}
4. Ba4 {[%clk 0:03:01.2]} 4... Nf6 {[%clk 0:02:53.6]} 5. O-O {[%clk 0:03:01.5]}
5... Nxe4 {[%clk 0:02:53]} 6. d4 {[%clk 0:02:56.8]} 6... b5 {[%clk 0:02:53.2]}
7. Bb3 {[%clk 0:02:56.7]} 7... d5 {[%clk 0:02:54]} 8. dxe5 {[%clk 0:02:55.9]}
8... Be6 {[%clk 0:02:54.8]} 9. Qe2 {[%clk 0:02:51.7]} 9... Be7 {[%clk
0:02:54.5]} 10. Rd1 {[%clk 0:02:47]} 10... Bc5 {[%clk 0:02:54.8]} 11. Be3 {[%clk
0:02:37.5]} 11... Bxe3 {[%clk 0:02:54.3]} 12. Qxe3 {[%clk 0:02:36.9]} 12... O-O
{[%clk 0:02:54.9]} 13. c3 {[%clk 0:02:31.3]} 13... Na5 {[%clk 0:02:42.6]} 14.
Bc2 {[%clk 0:02:30.9]} 14... Nc4 {[%clk 0:02:34.8]} 15. Qc1 {[%clk 0:02:22.9]}
15... Qe7 {[%clk 0:02:17.2]} 16. b3 {[%clk 0:02:20.6]} 16... Qc5 {[%clk
0:02:15.9]} 17. bxc4 {[%clk 0:01:37.6]} 17... Qxf2+ {[%clk 0:02:08.5]} 18. Kh1
{[%clk 0:01:37.3]} 18... bxc4 {[%clk 0:02:08.1]} 19. Rf1 {[%clk 0:01:31.1]}
19... Qe2 {[%clk 0:01:45.5]} 20. Nd4 {[%clk 0:01:14.2]} 20... Qg4 {[%clk
0:01:19.4]} 21. Bxe4 {[%clk 0:01:02.1]} 21... Qxe4 {[%clk 0:01:15.2]} 22. Qe1
{[%clk 0:00:40.9]} 22... Qd3 {[%clk 0:01:02.3]} 23. Rf3 {[%clk 0:00:27.2]} 23...
Qg6 {[%clk 0:00:53.2]} 24. Rg3 {[%clk 0:00:25.8]} 24... Qh5 {[%clk 0:00:44.5]}
25. Nd2 {[%clk 0:00:24.7]} 25... c5 {[%clk 0:00:44.6]} 26. Nxe6 {[%clk
0:00:18.6]} 26... fxe6 {[%clk 0:00:45.5]} 27. Qe3 {[%clk 0:00:18.5]} 27... Rac8
{[%clk 0:00:28.6]} 28. Nf3 {[%clk 0:00:18.5]} 28... Rc7 {[%clk 0:00:20.8]} 29.
Rb1 {[%clk 0:00:16.4]} 29... Qf5 {[%clk 0:00:18.8]} 30. Rb6 {[%clk 0:00:13.4]}
30... d4 {[%clk 0:00:16.7]} 31. cxd4 {[%clk 0:00:10.9]} 31... cxd4 {[%clk
0:00:17.2]} 32. Nxd4 {[%clk 0:00:09.5]} 32... Qf1+ {[%clk 0:00:16.2]} 33. Qg1
{[%clk 0:00:10.2]} 33... c3 {[%clk 0:00:16.5]} 34. Nxe6 {[%clk 0:00:09.4]} 34...
c2 {[%clk 0:00:15.6]} 0-1

[Event "Late-Titled-Tuesday-Blitz-April-02-2024"]
[Site "Chess.com"]
[Date "2024.04.02"]
[Round "3"]
[White "Andrei_Skvortsov"]
[Black "shimastream"]
[Result "0-1"]
[WhiteElo "2661"]
[BlackElo "3009"]
[TimeControl "180+1"]
[EndTime "14:27:22 PDT"]
[Termination "shimastream won by resignation"]

1. e4 {[%clk 0:03:00.9]} 1... b6 {[%clk 0:02:55.8]} 2. Nc3 {[%clk 0:02:44.2]}
2... Bb7 {[%clk 0:02:55.5]} 3. a3 {[%clk 0:02:44.6]} 3... e6 {[%clk 0:02:55.2]}
4. Nf3 {[%clk 0:02:44.7]} 4... c5 {[%clk 0:02:54.6]} 5. d4 {[%clk 0:02:44]} 5...
cxd4 {[%clk 0:02:55]} 6. Qxd4 {[%clk 0:02:41.4]} 6... d6 {[%clk 0:02:47.5]} 7.
Bb5+ {[%clk 0:02:35.9]} 7... Nd7 {[%clk 0:02:45.3]} 8. O-O {[%clk 0:02:33.8]}
8... Nf6 {[%clk 0:02:30.7]} 9. Bg5 {[%clk 0:02:22.3]} 9... e5 {[%clk 0:02:13.2]}
10. Qd3 {[%clk 0:02:07.1]} 10... a6 {[%clk 0:01:25.6]} 11. Bxf6 {[%clk
0:01:52.8]} 11... Qxf6 {[%clk 0:01:12.4]} 12. Bxd7+ {[%clk 0:01:22.3]} 12...
Kxd7 {[%clk 0:01:13.3]} 13. Na4 {[%clk 0:01:11.8]} 13... Kc7 {[%clk 0:00:51.8]}
14. Qe3 {[%clk 0:00:52.8]} 14... b5 {[%clk 0:00:51.2]} 15. Nb6 {[%clk
0:00:37.2]} 15... Rb8 {[%clk 0:00:46]} 16. c4 {[%clk 0:00:36.8]} 16... Qf4
{[%clk 0:00:43]} 17. Qxf4 {[%clk 0:00:30.2]} 17... exf4 {[%clk 0:00:43.9]} 18.
Nd5+ {[%clk 0:00:30.6]} 18... Kd7 {[%clk 0:00:42.4]} 19. Ng5 {[%clk 0:00:15.6]}
19... f6 {[%clk 0:00:34.9]} 20. Nh3 {[%clk 0:00:13.8]} 20... Bxd5 {[%clk
0:00:30.8]} 21. cxd5 {[%clk 0:00:13.3]} 21... g5 {[%clk 0:00:31.7]} 22. Rac1
{[%clk 0:00:11.7]} 22... Be7 {[%clk 0:00:31.6]} 23. f3 {[%clk 0:00:12.1]} 23...
Bd8 {[%clk 0:00:30.9]} 24. Rc6 {[%clk 0:00:11]} 24... Bb6+ {[%clk 0:00:30]} 25.
Kh1 {[%clk 0:00:11.6]} 25... Rhc8 {[%clk 0:00:30.5]} 26. Rfc1 {[%clk 0:00:12.1]}
26... Bd4 {[%clk 0:00:30.1]} 27. b3 {[%clk 0:00:10.5]} 27... Bb2 {[%clk
0:00:30.3]} 28. Rxc8 {[%clk 0:00:10.3]} 28... Rxc8 {[%clk 0:00:30]} 29. Rxc8
{[%clk 0:00:11]} 29... Kxc8 {[%clk 0:00:30.9]} 30. a4 {[%clk 0:00:10]} 30...
bxa4 {[%clk 0:00:31.2]} 31. bxa4 {[%clk 0:00:10.9]} 31... Kc7 {[%clk 0:00:31.7]}
32. g3 {[%clk 0:00:11.4]} 32... fxg3 {[%clk 0:00:30.3]} 33. hxg3 {[%clk
0:00:12.3]} 33... Kb6 {[%clk 0:00:30.6]} 34. f4 {[%clk 0:00:12.1]} 34... gxf4
{[%clk 0:00:28]} 35. Nxf4 {[%clk 0:00:10.3]} 35... Ka5 {[%clk 0:00:28]} 36. Nd3
{[%clk 0:00:10.7]} 36... Bd4 {[%clk 0:00:27.5]} 37. Kg2 {[%clk 0:00:10.7]} 37...
Kxa4 {[%clk 0:00:27.7]} 38. Kf3 {[%clk 0:00:11.3]} 38... a5 {[%clk 0:00:27.9]}
39. Nf4 {[%clk 0:00:11.7]} 39... Kb3 {[%clk 0:00:27.5]} 40. Ne6 {[%clk
0:00:12.3]} 40... Be5 {[%clk 0:00:27.9]} 41. g4 {[%clk 0:00:12]} 41... a4 {[%clk
0:00:27.9]} 0-1

[Event "Late-Titled-Tuesday-Blitz-April-02-2024"]
[Site "Chess.com"]
[Date "2024.04.02"]
[Round "3"]
[White "Mackster23"]
[Black "Fengwi"]
[Result "1-0"]
[WhiteElo "2624"]
[BlackElo "2428"]
[TimeControl "180+1"]
[EndTime "14:27:26 PDT"]
[Termination "Mackster23 won on time"]

1. e4 {[%clk 0:03:00.9]} 1... c5 {[%clk 0:02:59.1]} 2. Nf3 {[%clk 0:03:00.7]}
2... Nc6 {[%clk 0:02:58.7]} 3. d4 {[%clk 0:03:01]} 3... cxd4 {[%clk 0:02:59.6]}
4. Nxd4 {[%clk 0:03:01.7]} 4... g6 {[%clk 0:02:59.6]} 5. c4 {[%clk 0:03:01.6]}
5... Bg7 {[%clk 0:02:59.8]} 6. Be3 {[%clk 0:03:02.1]} 6... Qb6 {[%clk
0:03:00.4]} 7. Nb3 {[%clk 0:03:01.5]} 7... Qd8 {[%clk 0:03:00.4]} 8. Nd4 {[%clk
0:03:01.3]} 8... Qb6 {[%clk 0:03:00.1]} 9. Nb3 {[%clk 0:03:02]} 9... Qd8 {[%clk
0:03:00.3]} 10. Qd2 {[%clk 0:03:02.7]} 10... Nf6 {[%clk 0:03:00.3]} 11. Nc3
{[%clk 0:03:02.7]} 11... O-O {[%clk 0:02:59.3]} 12. Be2 {[%clk 0:03:02.3]} 12...
d6 {[%clk 0:02:59.2]} 13. O-O {[%clk 0:03:01.6]} 13... a5 {[%clk 0:02:57.6]} 14.
Rfe1 {[%clk 0:02:54.8]} 14... a4 {[%clk 0:02:55.7]} 15. Nd4 {[%clk 0:02:55.1]}
15... Nxd4 {[%clk 0:02:55.6]} 16. Bxd4 {[%clk 0:02:56]} 16... Qa5 {[%clk
0:02:55.7]} 17. Rad1 {[%clk 0:02:54]} 17... Be6 {[%clk 0:02:51.8]} 18. Bf1
{[%clk 0:02:34.4]} 18... Rfc8 {[%clk 0:02:49.1]} 19. Nd5 {[%clk 0:02:34.2]}
19... Qxd2 {[%clk 0:02:35.7]} 20. Rxd2 {[%clk 0:02:32.5]} 20... Bxd5 {[%clk
0:02:19.8]} 21. exd5 {[%clk 0:02:09.4]} 21... Nd7 {[%clk 0:00:52.9]} 22. Rxe7
{[%clk 0:01:46.7]} 22... Bxd4 {[%clk 0:00:44.8]} 23. Rxd4 {[%clk 0:01:40.5]}
23... Nc5 {[%clk 0:00:43.4]} 24. Rf4 {[%clk 0:01:34.2]} 24... Rf8 {[%clk
0:00:32.4]} 25. Rf6 {[%clk 0:01:33.2]} 25... Rad8 {[%clk 0:00:20.3]} 26. g4
{[%clk 0:01:32.8]} 26... h6 {[%clk 0:00:19.8]} 27. h4 {[%clk 0:01:32.1]} 27...
Kg7 {[%clk 0:00:17.1]} 28. g5 {[%clk 0:01:32]} 28... hxg5 {[%clk 0:00:18]} 29.
hxg5 {[%clk 0:01:32.3]} 29... a3 {[%clk 0:00:10.4]} 30. b4 {[%clk 0:01:24.1]}
30... Na4 {[%clk 0:00:09]} 31. Bd3 {[%clk 0:01:23.8]} 31... Nc3 {[%clk
0:00:08.6]} 32. Rxg6+ {[%clk 0:01:23.7]} 32... Kh8 {[%clk 0:00:08.1]} 33. Rh6+
{[%clk 0:01:22.4]} 33... Kg7 {[%clk 0:00:06.6]} 34. Rh7+ {[%clk 0:01:17.2]}
34... Kg8 {[%clk 0:00:06.8]} 35. g6 {[%clk 0:01:18.1]} 35... Nxa2 {[%clk
0:00:03.7]} 36. gxf7+ {[%clk 0:01:12.7]} 36... Rxf7 {[%clk 0:00:01.4]} 37. Rexf7
{[%clk 0:01:11.8]} 37... Nxb4 {[%clk 0:00:01.5]} 38. Bb1 {[%clk 0:00:37.2]}
38... a2 {[%clk 0:00:01.9]} 39. Bxa2 {[%clk 0:00:32.9]} 39... Nxa2 {[%clk
0:00:02.8]} 40. Rxb7 {[%clk 0:00:26.5]} 40... Nc3 {[%clk 0:00:02.9]} 41. Rbg7+
{[%clk 0:00:25.7]} 41... Kf8 {[%clk 0:00:02.8]} 42. Rh8+ {[%clk 0:00:26.2]}
42... Kxg7 {[%clk 0:00:03.5]} 43. Rxd8 {[%clk 0:00:27]} 1-0

[Event "Late-Titled-Tuesday-Blitz-April-02-2024"]
[Site "Chess.com"]
[Date "2024.04.02"]
[Round "3"]
[White "UK_23"]
[Black "Ar4uha"]
[Result "0-1"]
[WhiteElo "2403"]
[BlackElo "2597"]
[TimeControl "180+1"]
[EndTime "14:27:26 PDT"]
[Termination "Ar4uha won by checkmate"]

1. e4 {[%clk 0:03:00.9]} 1... c5 {[%clk 0:03:00]} 2. Nf3 {[%clk 0:02:59.8]} 2...
Nc6 {[%clk 0:03:00.6]} 3. Bb5 {[%clk 0:02:59.5]} 3... g6 {[%clk 0:03:00.4]} 4.
Nc3 {[%clk 0:02:59]} 4... Nd4 {[%clk 0:02:57.7]} 5. a4 {[%clk 0:02:49.6]} 5...
Bg7 {[%clk 0:02:57.5]} 6. O-O {[%clk 0:02:48.2]} 6... e6 {[%clk 0:02:57.7]} 7.
Re1 {[%clk 0:02:48.3]} 7... Ne7 {[%clk 0:02:57.9]} 8. Bf1 {[%clk 0:02:48.4]}
8... O-O {[%clk 0:02:57.5]} 9. Nxd4 {[%clk 0:02:42.5]} 9... cxd4 {[%clk
0:02:57.7]} 10. Ne2 {[%clk 0:02:40.7]} 10... d5 {[%clk 0:02:56.1]} 11. exd5
{[%clk 0:02:39.5]} 11... Nxd5 {[%clk 0:02:55.9]} 12. d3 {[%clk 0:02:39.6]} 12...
Bd7 {[%clk 0:02:51.7]} 13. Nf4 {[%clk 0:02:38.9]} 13... Bc6 {[%clk 0:02:50.6]}
14. Nxd5 {[%clk 0:02:33.8]} 14... Qxd5 {[%clk 0:02:51.5]} 15. Bf4 {[%clk
0:02:33.1]} 15... Rac8 {[%clk 0:02:50.3]} 16. Qd2 {[%clk 0:02:30.3]} 16... Rfe8
{[%clk 0:02:49.5]} 17. Bh6 {[%clk 0:02:27.8]} 17... Bh8 {[%clk 0:02:48.5]} 18.
b3 {[%clk 0:02:10.2]} 18... b6 {[%clk 0:02:48]} 19. Re2 {[%clk 0:02:10.1]} 19...
Ba8 {[%clk 0:02:44.6]} 20. Rae1 {[%clk 0:02:09.7]} 20... Rc5 {[%clk 0:02:43.7]}
21. Qf4 {[%clk 0:01:51.2]} 21... Rec8 {[%clk 0:02:37.3]} 22. h4 {[%clk
0:01:33.5]} 22... e5 {[%clk 0:02:33.5]} 23. Qg4 {[%clk 0:01:13.3]} 23... f5
{[%clk 0:02:33.3]} 24. Qg3 {[%clk 0:01:10.5]} 24... Rxc2 {[%clk 0:02:28.5]} 25.
Rxe5 {[%clk 0:01:07.6]} 25... Bxe5 {[%clk 0:02:24.3]} 26. Rxe5 {[%clk
0:01:08.5]} 26... Qf7 {[%clk 0:02:23.6]} 27. Qg5 {[%clk 0:01:01.5]} 27... Re8
{[%clk 0:01:51.2]} 28. Rxe8+ {[%clk 0:00:42.6]} 28... Qxe8 {[%clk 0:01:51.2]}
29. Qf6 {[%clk 0:00:42.1]} 29... Rc7 {[%clk 0:01:40.2]} 30. Qxd4 {[%clk
0:00:38.7]} 30... Re7 {[%clk 0:01:29.8]} 31. Qf6 {[%clk 0:00:23.4]} 31... Rf7
{[%clk 0:00:57.5]} 32. Qd6 {[%clk 0:00:21]} 32... Rd7 {[%clk 0:00:57.8]} 33. Qf6
{[%clk 0:00:21]} 33... Qe7 {[%clk 0:00:57]} 34. Qc3 {[%clk 0:00:18.8]} 34... Bb7
{[%clk 0:00:38.8]} 35. d4 {[%clk 0:00:17.5]} 35... Qxh4 {[%clk 0:00:31.3]} 36.
Bc4+ {[%clk 0:00:15.5]} 36... Bd5 {[%clk 0:00:24.6]} 37. Qe3 {[%clk 0:00:13.2]}
37... Kf7 {[%clk 0:00:20.6]} 38. Bg5 {[%clk 0:00:10.4]} 38... Qe4 {[%clk
0:00:20.7]} 39. Qh3 {[%clk 0:00:06.5]} 39... h5 {[%clk 0:00:20.9]} 40. Qc3
{[%clk 0:00:04.9]} 40... Qxg2# {[%clk 0:00:20.1]} 0-1

[Event "Late-Titled-Tuesday-Blitz-April-02-2024"]
[Site "Chess.com"]
[Date "2024.04.02"]
[Round "3"]
[White "smotherhubbard"]
[Black "rk12387"]
[Result "1-0"]
[WhiteElo "2359"]
[BlackElo "2131"]
[TimeControl "180+1"]
[EndTime "14:27:26 PDT"]
[Termination "smotherhubbard won by resignation"]

1. d4 {[%clk 0:03:00.9]} 1... Nf6 {[%clk 0:02:59.6]} 2. c4 {[%clk 0:02:59.3]}
2... e5 {[%clk 0:03:00.1]} 3. dxe5 {[%clk 0:02:58.7]} 3... Ng4 {[%clk
0:03:00.7]} 4. Bf4 {[%clk 0:02:57.1]} 4... Nc6 {[%clk 0:03:01.3]} 5. Nf3 {[%clk
0:02:56.2]} 5... Bb4+ {[%clk 0:03:01.5]} 6. Nbd2 {[%clk 0:02:55.5]} 6... Qe7
{[%clk 0:03:01.9]} 7. e3 {[%clk 0:02:55.4]} 7... Ngxe5 {[%clk 0:02:57.7]} 8.
Nxe5 {[%clk 0:02:55]} 8... Nxe5 {[%clk 0:02:57.8]} 9. a3 {[%clk 0:02:55.2]} 9...
Bc5 {[%clk 0:02:57.8]} 10. b4 {[%clk 0:02:51.5]} 10... Bd4 {[%clk 0:02:56.1]}
11. Rc1 {[%clk 0:02:46.2]} 11... d6 {[%clk 0:02:36.5]} 12. Be2 {[%clk
0:02:44.3]} 12... Ng6 {[%clk 0:02:32.8]} 13. Bg3 {[%clk 0:02:42.8]} 13... Bb2
{[%clk 0:02:31.2]} 14. Rb1 {[%clk 0:02:42.4]} 14... Bc3 {[%clk 0:02:19.2]} 15.
O-O {[%clk 0:02:42.3]} 15... Bf5 {[%clk 0:02:19.5]} 16. Rb3 {[%clk 0:02:28.2]}
16... Be5 {[%clk 0:02:18.3]} 17. f4 {[%clk 0:02:18.3]} 17... Bf6 {[%clk
0:02:17.6]} 18. Bf3 {[%clk 0:02:16.1]} 18... Rb8 {[%clk 0:01:55.5]} 19. e4
{[%clk 0:02:04.2]} 19... Bd7 {[%clk 0:01:55.6]} 20. Re1 {[%clk 0:02:04.1]} 20...
Bh4 {[%clk 0:01:50.4]} 21. e5 {[%clk 0:02:00.5]} 21... Bxg3 {[%clk 0:01:49.6]}
22. hxg3 {[%clk 0:01:54.3]} 22... dxe5 {[%clk 0:01:48.1]} 23. fxe5 {[%clk
0:01:50]} 23... O-O {[%clk 0:01:48.1]} 24. Rbe3 {[%clk 0:01:46.1]} 24... Be6
{[%clk 0:01:47.5]} 25. Qc2 {[%clk 0:01:45.2]} 25... c5 {[%clk 0:01:41.4]} 26. b5
{[%clk 0:01:42.8]} 26... Rfd8 {[%clk 0:01:40.2]} 27. Ne4 {[%clk 0:01:39.7]}
27... Bf5 {[%clk 0:01:35]} 28. Qc3 {[%clk 0:01:36.7]} 28... Bxe4 {[%clk
0:01:34.4]} 29. Rxe4 {[%clk 0:01:34.5]} 29... Nf8 {[%clk 0:01:34.5]} 30. e6
{[%clk 0:01:25.2]} 30... Nxe6 {[%clk 0:01:34.7]} 31. Rg4 {[%clk 0:01:23]} 31...
g6 {[%clk 0:01:23]} 32. Bd5 {[%clk 0:01:20.8]} 32... Rd6 {[%clk 0:01:12.7]} 33.
Rge4 {[%clk 0:01:11]} 33... Rbd8 {[%clk 0:01:09.4]} 34. Qe3 {[%clk 0:01:03.3]}
34... Qg5 {[%clk 0:00:55.7]} 35. Rxe6 {[%clk 0:00:59.7]} 35... Rxe6 {[%clk
0:00:52.2]} 36. Qxg5 {[%clk 0:00:57.1]} 36... Rxe1+ {[%clk 0:00:52.3]} 37. Kf2
{[%clk 0:00:57.1]} 37... Rde8 {[%clk 0:00:52.3]} 38. Bxb7 {[%clk 0:00:41.7]}
38... f5 {[%clk 0:00:42.9]} 39. Qf6 {[%clk 0:00:28.8]} 39... R8e2+ {[%clk
0:00:26.1]} 40. Kf3 {[%clk 0:00:28.9]} 40... Re3+ {[%clk 0:00:25]} 41. Kf4
{[%clk 0:00:29.2]} 41... Re6 {[%clk 0:00:17.6]} 42. Bd5 {[%clk 0:00:28]} 42...
Rf1+ {[%clk 0:00:17.6]} 43. Kg5 {[%clk 0:00:26.8]} 43... h6+ {[%clk 0:00:18.1]}
44. Kxg6 {[%clk 0:00:25.5]} 1-0

[Event "Late-Titled-Tuesday-Blitz-April-02-2024"]
[Site "Chess.com"]
[Date "2024.04.02"]
[Round "3"]
[White "HeroWilczek"]
[Black "Joshuachick"]
[Result "0-1"]
[WhiteElo "2542"]
[BlackElo "2876"]
[TimeControl "180+1"]
[EndTime "14:27:27 PDT"]
[Termination "Joshuachick won by resignation"]

1. e4 {[%clk 0:03:00.9]} 1... c6 {[%clk 0:02:56.3]} 2. Nc3 {[%clk 0:03:00.5]}
2... g6 {[%clk 0:02:56]} 3. d4 {[%clk 0:02:59.6]} 3... Bg7 {[%clk 0:02:56.5]} 4.
Nf3 {[%clk 0:03:00.2]} 4... d5 {[%clk 0:02:56.8]} 5. Be2 {[%clk 0:02:57.7]} 5...
dxe4 {[%clk 0:02:56.5]} 6. Nxe4 {[%clk 0:02:58.6]} 6... Nf6 {[%clk 0:02:57]} 7.
Nxf6+ {[%clk 0:02:58.2]} 7... exf6 {[%clk 0:02:56.6]} 8. O-O {[%clk 0:02:58]}
8... O-O {[%clk 0:02:57.3]} 9. Re1 {[%clk 0:02:57.9]} 9... Be6 {[%clk
0:02:51.4]} 10. Bf4 {[%clk 0:02:57.4]} 10... Nd7 {[%clk 0:02:44.8]} 11. Qd2
{[%clk 0:02:54.3]} 11... Nb6 {[%clk 0:02:43.3]} 12. b3 {[%clk 0:02:52.9]} 12...
Nd5 {[%clk 0:02:37.4]} 13. Bg3 {[%clk 0:02:46]} 13... Qd7 {[%clk 0:02:35.6]} 14.
c4 {[%clk 0:02:40.5]} 14... Ne7 {[%clk 0:02:36.1]} 15. Rad1 {[%clk 0:02:38.1]}
15... Rfd8 {[%clk 0:02:36.1]} 16. Bf4 {[%clk 0:02:28.7]} 16... a5 {[%clk
0:02:32.7]} 17. a4 {[%clk 0:02:27.4]} 17... g5 {[%clk 0:02:25]} 18. Be3 {[%clk
0:02:20.5]} 18... h6 {[%clk 0:02:25.6]} 19. Bd3 {[%clk 0:02:08.6]} 19... Ng6
{[%clk 0:02:16.3]} 20. Qc2 {[%clk 0:02:05.1]} 20... f5 {[%clk 0:02:13.5]} 21.
Bc1 {[%clk 0:01:58.1]} 21... f4 {[%clk 0:01:10.2]} 22. Bxg6 {[%clk 0:01:18.8]}
22... fxg6 {[%clk 0:01:09.6]} 23. Ne5 {[%clk 0:01:19.5]} 23... Bf5 {[%clk
0:01:03.9]} 24. Qe2 {[%clk 0:00:55.5]} 24... Qc7 {[%clk 0:00:57.4]} 25. Bb2
{[%clk 0:00:54.1]} 25... Kh7 {[%clk 0:00:50]} 26. Qf3 {[%clk 0:00:50]} 26... Re8
{[%clk 0:00:45.8]} 27. h3 {[%clk 0:00:46.6]} 27... Re7 {[%clk 0:00:39.4]} 28.
Nd3 {[%clk 0:00:41.8]} 28... Rae8 {[%clk 0:00:37.6]} 29. Rxe7 {[%clk 0:00:36.3]}
29... Rxe7 {[%clk 0:00:35.8]} 30. Re1 {[%clk 0:00:34.9]} 30... Bxd3 {[%clk
0:00:32.8]} 31. Rxe7 {[%clk 0:00:34.2]} 31... Qxe7 {[%clk 0:00:33.7]} 32. Qxd3
{[%clk 0:00:34.5]} 32... Qe1+ {[%clk 0:00:30.9]} 33. Kh2 {[%clk 0:00:29.9]}
33... Qxf2 {[%clk 0:00:29.7]} 34. Bc3 {[%clk 0:00:28.3]} 34... c5 {[%clk
0:00:26.7]} 35. d5 {[%clk 0:00:22.7]} 35... Qg3+ {[%clk 0:00:23.5]} 36. Qxg3
{[%clk 0:00:16.8]} 36... fxg3+ {[%clk 0:00:24.4]} 37. Kxg3 {[%clk 0:00:16.1]}
37... Bxc3 {[%clk 0:00:25.3]} 38. Kf3 {[%clk 0:00:16.6]} 38... Kg7 {[%clk
0:00:24.4]} 39. Ke4 {[%clk 0:00:17.2]} 39... Kf6 {[%clk 0:00:24.2]} 40. g4
{[%clk 0:00:16.3]} 40... Ke7 {[%clk 0:00:21.6]} 0-1

[Event "Late-Titled-Tuesday-Blitz-April-02-2024"]
[Site "Chess.com"]
[Date "2024.04.02"]
[Round "3"]
[White "DrKerfuffle"]
[Black "DanielNaroditsky"]
[Result "0-1"]
[WhiteElo "2779"]
[BlackElo "3153"]
[TimeControl "180+1"]
[EndTime "14:27:28 PDT"]
[Termination "DanielNaroditsky won on time"]

1. e4 {[%clk 0:03:00.9]} 1... Nf6 {[%clk 0:03:00.9]} 2. e5 {[%clk 0:02:56.8]}
2... Nd5 {[%clk 0:03:00.7]} 3. Nf3 {[%clk 0:02:55.6]} 3... d6 {[%clk 0:03:00.7]}
4. g3 {[%clk 0:02:55.5]} 4... dxe5 {[%clk 0:02:58.2]} 5. Nxe5 {[%clk 0:02:56.4]}
5... Qd6 {[%clk 0:02:58.3]} 6. d4 {[%clk 0:02:53.5]} 6... Nc6 {[%clk 0:02:57.8]}
7. Nxc6 {[%clk 0:02:49.6]} 7... Qxc6 {[%clk 0:02:58.7]} 8. Bg2 {[%clk
0:02:49.1]} 8... Bf5 {[%clk 0:02:43]} 9. O-O {[%clk 0:02:42.8]} 9... O-O-O
{[%clk 0:02:37.4]} 10. Nc3 {[%clk 0:02:33.9]} 10... Nxc3 {[%clk 0:02:26.1]} 11.
bxc3 {[%clk 0:02:34.8]} 11... Qxc3 {[%clk 0:02:26.1]} 12. Be3 {[%clk 0:02:31.4]}
12... e6 {[%clk 0:02:20.3]} 13. Rb1 {[%clk 0:02:28.3]} 13... c6 {[%clk
0:02:20.1]} 14. Qf3 {[%clk 0:01:43.8]} 14... Qc4 {[%clk 0:02:19.9]} 15. Rb3
{[%clk 0:01:34.6]} 15... Rd7 {[%clk 0:01:52.9]} 16. h4 {[%clk 0:01:19.7]} 16...
Bd6 {[%clk 0:01:43.1]} 17. g4 {[%clk 0:01:15.4]} 17... Bxc2 {[%clk 0:01:43.6]}
18. Rc1 {[%clk 0:01:15.8]} 18... Bxb3 {[%clk 0:01:41.2]} 19. Rxc4 {[%clk
0:01:15.3]} 19... Bxc4 {[%clk 0:01:42.1]} 20. a4 {[%clk 0:01:15.3]} 20... Bd5
{[%clk 0:01:41.9]} 21. Qe2 {[%clk 0:01:14.4]} 21... Bxg2 {[%clk 0:01:39.9]} 22.
Kxg2 {[%clk 0:01:15.3]} 22... Kb8 {[%clk 0:01:37.7]} 23. a5 {[%clk 0:01:14.8]}
23... a6 {[%clk 0:01:35.1]} 24. h5 {[%clk 0:01:11.2]} 24... h6 {[%clk
0:01:34.5]} 25. Qc2 {[%clk 0:01:04.3]} 25... Bc7 {[%clk 0:01:32.5]} 26. Qc5
{[%clk 0:00:56]} 26... Rd5 {[%clk 0:01:15.2]} 27. Qe7 {[%clk 0:00:55.8]} 27...
g6 {[%clk 0:01:13.4]} 28. Qf6 {[%clk 0:00:44.8]} 28... Rhd8 {[%clk 0:01:07.2]}
29. hxg6 {[%clk 0:00:41.4]} 29... fxg6 {[%clk 0:01:06.6]} 30. Qxg6 {[%clk
0:00:42.3]} 30... Rxa5 {[%clk 0:01:01.4]} 31. Qxh6 {[%clk 0:00:41.4]} 31... Rad5
{[%clk 0:00:59.3]} 32. g5 {[%clk 0:00:41.2]} 32... a5 {[%clk 0:00:54.5]} 33. g6
{[%clk 0:00:38.9]} 33... a4 {[%clk 0:00:51.8]} 34. Bg5 {[%clk 0:00:37.1]} 34...
Rg8 {[%clk 0:00:47.3]} 35. Bf6 {[%clk 0:00:37.1]} 35... a3 {[%clk 0:00:37.9]}
36. Qh7 {[%clk 0:00:37.4]} 36... Rxg6+ {[%clk 0:00:29.5]} 37. Qxg6 {[%clk
0:00:31.8]} 37... a2 {[%clk 0:00:30.4]} 38. Qe8+ {[%clk 0:00:07]} 38... Ka7
{[%clk 0:00:30.2]} 39. Qe7 {[%clk 0:00:07.7]} 39... Bd6 {[%clk 0:00:25.7]} 0-1